Cogmind - Beta 12 X4 @@@ ROGUE MODE // 2022.11.26 @ 06:36:39 Player: LU-1G1 Result: Self-destructed Performance ------------- Evolutions (4) 2000 Regions Visited (11) 2200 Robots Destroyed (208) 1040 Value Destroyed (6740) 6740 Prototype IDs (11) 220 Alien Tech Used (0) 0 Bonus (3816) 3816 TOTAL SCORE: 16016 Bonus ------- High Alert Combat Kills 1572 Follower Combat Kills 486 Entered Garrisons 400 Used RIF Installer 1500 Friendly Fire -142 Cogmind --------- Core Integrity 551/850 Matter 252/300 Energy 290/290 System Corruption 11% Temperature Cool (0) Movement Walking (120) Location -6/Extension Parts ------- > --- POWER (2) -------- Improved Deuterium Engine > --- PROPULSION (5) --- Light Treads Carbon-fiber Leg Flexi-carbon Leg Flexi-carbon Leg Flexi-carbon Leg > --- UTILITY (6) ------ Small Storage Unit Gravity Neutralizer Hardened Medium Armor Plating Hacking Suite > --- WEAPON (2) ------- Impact Mace Ripper > --- INVENTORY (8) ---- Carbon-fiber Leg Flexi-carbon Leg Gravity Neutralizer Relay Coupler [NC] (32) Relay Coupler [Sentry] (24) Long-range Tractor Beam Improved Datajack Power Maul Peak State ------------ > --- POWER ------------ Cooled Deuterium Engine > --- PROPULSION ------- Aerolev Unit Aerolev Unit Aerolev Unit Aerolev Unit > --- UTILITY ---------- Small Storage Unit Gravity Neutralizer Improved Utility Shielding Hardened Medium Armor Plating Hacking Suite System Restoration Module > --- WEAPON ----------- Rocket Launcher Power Maul > --- INVENTORY -------- Cooled Deuterium Engine Gravity Neutralizer Hardened Medium Armor Plating Hardened Medium Armor Plating Relay Coupler [NC] Relay Coupler [NC] Relay Coupler [Sentry] Long-range Tractor Beam [Rating: 49] Favorites ----------- Power Heavy Ion Engine Engine Heavy Ion Engine Power Core Micro Nuclear Core Propulsion Light Treads Treads Light Treads Leg Flexi-carbon Leg Hover Unit Aerolev Unit Flight Unit VTOL Module Utility Huge Storage Unit Device Heat Sink Storage Huge Storage Unit Processor Improved Signal Interpreter Hackware Hacking Suite Protection Hardened Medium Armor Plating Weapon Improved EM Shotgun Energy Gun Improved EM Shotgun Energy Cannon Advanced Beam Cannon Ballistic Gun Light Assault Rifle Ballistic Cannon Improved Light Cannon Launcher Rocket Launcher Impact Weapon Power Maul Slashing Weapon Ripper Special Melee Weapon Improved Datajack Build | -11 -10 -10 -9 -8 -8 -8 -7 -7 -7 -6 -6 ------- Run | Scr Mat Min Mat Mat Gar Sto Fac Gar Fac Fac Ext Slots Evolved 8 | . . . 2 2 . . 2 . . 2 . Power 1 | . . . . . . . . . . 1 . Propulsion 3 | . . . 1 1 . . . . . 1 . Utility 4 | . . . 1 1 . . 2 . . . . Weapon . | . . . . . . . . . . . . Parts Attached 211 | 10 18 6 43 28 19 30 23 5 9 5 15 Power 17 | 2 1 1 3 1 1 . 5 . 1 . 2 Engine 16 | 2 1 1 3 1 1 . 4 . 1 . 2 Core 1 | . . . . . . . 1 . . . . Reactor . | . . . . . . . . . . . . Propulsion 82 | 2 8 3 20 8 8 13 4 3 5 . 8 Treads 62 | 2 8 3 20 8 8 12 . . . . 1 Leg 6 | . . . . . . . . . . . 6 Wheel . | . . . . . . . . . . . . Hover 10 | . . . . . . 1 4 . 4 . 1 Flight 4 | . . . . . . . . 3 1 . . Utility 59 | 3 6 2 9 5 5 11 9 2 1 4 2 Device 24 | 2 3 . 2 1 2 8 4 1 . 1 . Storage 8 | 1 2 . 2 . . . 1 . . 2 . Processor 3 | . 1 . . 1 1 . . . . . . Hackware 6 | . . . . 2 . . 1 . 1 1 1 Protection 18 | . . 2 5 1 2 3 3 1 . . 1 Artifact . | . . . . . . . . . . . . Weapon 53 | 3 3 . 11 14 5 6 5 . 2 1 3 Energy Gun 31 | 2 3 . 9 8 5 4 . . . . . Energy Cannon 1 | . . . . 1 . . . . . . . Ballistic Gun 3 | 1 . . . . . . 2 . . . . Ballistic Cannon 1 | . . . . 1 . . . . . . . Launcher 11 | . . . 2 4 . 2 1 . 1 . 1 Special Weapon . | . . . . . . . . . . . . Impact Weapon 4 | . . . . . . . 2 . 1 . 1 Slashing Weapon 1 | . . . . . . . . . . . 1 Piercing Weapon . | . . . . . . . . . . . . Special Melee Weapon 1 | . . . . . . . . . . 1 . Unidentified Prototypes 11 | . . . 2 2 . 3 3 . 1 . . Corrupted Parts 7 | . . . 3 1 2 . . . . . 1 System Corruption 27 | . . . 11 4 11 . . . . . 1 Parts Lost 52 | . 2 1 7 3 13 3 2 9 . 3 9 Power 5 | . 1 1 . . . . . 1 . . 2 Propulsion 24 | . . . 3 2 6 1 1 6 . 2 3 Utility 15 | . 1 . 3 . 3 2 1 1 . 1 3 Weapon 8 | . . . 1 1 4 . . 1 . . 1 Highest Loss Streak 7 | . 1 1 1 2 5 2 1 4 . 3 7 To Critical Strikes . | . . . . . . . . . . . . Average Slot Usage (%) 94 | . 99 95 96 95 97 99 85 86 84 79 64 Engine 9 | . 13 9 11 8 8 9 6 6 6 6 4 Treads 28 | . 27 28 32 33 34 35 13 . . . 3 Hover 2 | . . . . . . . 12 15 20 23 6 Device 10 | . 11 8 9 6 7 12 13 12 15 9 6 Storage 10 | . 14 14 11 9 9 9 7 7 7 6 6 Processor 4 | . 2 . . 8 14 4 . . . . . Hackware 1 | . . . . 5 . . 3 7 11 13 13 Protection 6 | . . 5 9 6 3 8 10 15 7 5 1 Energy Gun 16 | . 24 28 19 14 17 17 8 . . . . Launcher 1 | . . . 1 3 . . 2 4 . . 2 Naked Turns . | . . . . . . . . . . . . Heaviest Build 108 | 14 52 54 104 104 102 108 107 41 25 25 29 Greatest Support 92 | 40 40 40 60 80 80 92 82 44 33 33 75 Greatest Overweight (x) 4 | . 2 1 4 1 1 1 4 1 1 1 1 Average Overweight (x) . | . . 1 . 1 1 1 . . . . . Largest Inventory Capacity 25 | 8 20 20 25 25 25 25 25 8 8 15 8 Average Capacity 20 | 7 16 20 23 25 25 25 18 8 8 8 8 Most Carried 25 | 8 16 20 25 25 25 25 25 8 8 9 8 Average Carried 19 | 5 12 17 22 24 23 24 18 7 7 7 7 Final Capacity 25 | 8 20 20 25 25 25 25 8 8 8 8 8 Final Carried 25 | 7 16 20 25 24 22 25 8 7 8 7 8 Class Distribution -------------------- 45% | Mutant 37% | Scavenger-Mutant 9% | Commander-Mutant 7% | Hacker-Mutant Dominant Class ---------------- Mutant | -10/Materials Mutant | -10/Mines Scavenger-Mutant | -9/Materials Scavenger-Mutant | -8/Materials Commander-Mutant | -8/Garrison Scavenger-Mutant | -8/Storage Mutant | -7/Factory Mutant | -7/Garrison Hacker-Mutant | -7/Factory Hacker-Mutant | -6/Factory Scavenger-Mutant | -6/Extension Resources | -11 -10 -10 -9 -8 -8 -8 -7 -7 -7 -6 -6 ----------- Run | Scr Mat Min Mat Mat Gar Sto Fac Gar Fac Fac Ext Matter Collected 2865 | 315 205 30 430 454 295 458 160 117 117 . 284 Remotely . | . . . . . . . . . . . . Salvage Created 8513 | 226 1044 180 2772 961 1208 1129 429 151 137 . 276 Parts 425 | 19 49 6 152 45 67 54 12 7 4 . 10 Haulers Intercepted 12 | . 2 . 3 3 . 3 1 . . . . Recyclers Shooed 4 | . . . 3 . . . 1 . . . . Parts Field Recycled . | . . . . . . . . . . . . Retrieved Matter . | . . . . . . . . . . . . Parts Self-Destructed . | . . . . . . . . . . . . Prevented . | . . . . . . . . . . . . Kills | -11 -10 -10 -9 -8 -8 -8 -7 -7 -7 -6 -6 ------- Run | Scr Mat Min Mat Mat Gar Sto Fac Gar Fac Fac Ext Combat Hostiles Destroyed 161 | . 23 2 50 18 28 18 8 6 . . 8 Melee 6 | . . . . . . 2 . 2 . . 2 Guns 100 | . 23 2 36 5 21 11 2 . . . . Cannons 2 | . . . . 2 . . . . . . . AOE 45 | . . . 14 11 6 5 4 2 . . 3 Classes Destroyed 17 | 3 4 1 5 2 . . 1 1 . . . Worker 9 | 1 1 1 4 . . 2 . . . . . Builder 4 | . . . 2 1 . . . . 1 . . Tunneler 6 | 6 . . . . . . . . . . . Hauler 12 | . 2 . 3 3 . 3 1 . . . . Recycler 11 | 1 1 1 3 1 . 2 1 . 1 . . Mechanic 3 | . . . 1 1 . 1 . . . . . Operator 7 | . . . 1 1 . 1 1 1 1 . 1 Watcher 8 | . 2 . 4 . . 1 . . 1 . . Swarmer 33 | . 6 . 4 . 14 . 4 2 . . 3 Cutter 2 | . . . . . . . . 2 . . . Grunt 92 | . 17 . 37 12 9 10 1 2 . . 4 Brawler 3 | . . . 2 1 . . . . . . . Duelist 4 | . . . . 1 1 2 . . . . . Protector 4 | . . . 1 1 . 2 . . . . . Sentry 16 | . . 2 6 . 2 4 1 . . . 1 Hunter 5 | . . . . 3 2 . . . . . . Programmer 2 | . . . . . . . 2 . . . . Best Kill Streak 8 | 2 8 2 6 8 7 8 4 2 4 . 3 Combat Bots Only 8 | . 8 2 5 8 7 7 4 2 . . 3 Max Kills in Single Turn 4 | 1 1 1 4 3 2 3 1 1 1 . 1 Gunslinging 1 | . . . . . 1 . . . . . . Exploded 4 | . . . 4 3 2 3 1 1 . . 1 Melee 1 | . . . . . . 1 . 1 . . 1 Uniques/NPCs Destroyed . | . . . . . . . . . . . . Combat | -11 -10 -10 -9 -8 -8 -8 -7 -7 -7 -6 -6 -------- Run | Scr Mat Min Mat Mat Gar Sto Fac Gar Fac Fac Ext Damage Taken 9847 | . 788 186 1911 1065 1625 1423 718 906 61 310 854 Core 1499 | . 170 17 166 162 195 155 154 181 . 63 236 Absorbed by Shields 336 | . . . . . 7 172 157 . . . . Redirected to Shielding 66 | . . . 2 . . . 21 43 . . . Regen/Repaired (Parts) 1282 | . 161 . 193 887 . . 41 . . . . Core Remaining (%) 48 | 100 . 25 58 . . 6 . . 52 . . Volleys Fired 407 | 15 64 13 122 38 55 67 18 10 . . 5 Largest 2 | 2 2 2 2 2 2 2 2 1 . . 1 Hottest 122 | 70 112 112 112 90 110 122 122 33 . . 36 Shots Fired 751 | 23 128 26 236 68 108 117 30 10 . . 5 Gun 704 | 23 128 26 232 49 108 114 24 . . . . Cannon 8 | . . . . 8 . . . . . . . Launcher 39 | . . . 4 11 . 3 6 10 . . 5 Special . | . . . . . . . . . . . . Kinetic 54 | 15 31 . . 8 . . . . . . . Thermal 367 | 8 97 26 80 . 18 114 24 . . . . Explosive 39 | . . . 4 11 . 3 6 10 . . 5 Electromagnetic 291 | . . . 152 49 90 . . . . . . Robot Hit Streak 18 | 9 17 6 18 11 18 9 10 1 . . 2 Robot Miss Streak 8 | 2 5 1 8 3 6 4 2 2 . . 2 Penetration Max . | . . . . . . . . . . . . Secondary Targets 11 | . . . 6 1 3 1 . . . . . Max Gunslinging Chain 1 | . . . 1 1 1 1 . . . . . Shots Hit Robots 572 | 16 90 17 176 53 81 73 27 10 4 3 22 Core Hits 372 | 10 40 6 113 59 62 45 13 10 1 . 13 Critical Kills 4 | . . . . . . . . 1 1 . 2 Critical Parts Destroyed 7 | . 1 . . . . . 1 1 1 . 3 Critical Strikes 35 | . 7 1 7 . . 8 2 2 2 . 6 Burn 23 | . 6 1 7 . . 8 1 . . . . Destroy 1 | . 1 . . . . . . . . . . Smash 11 | . . . . . . . 1 2 2 . 6 Melee Attacks 79 | . . . . . . . 8 22 6 18 25 Impact 75 | . . . . . . . 8 22 6 15 24 Slashing 1 | . . . . . . . . . . . 1 Piercing . | . . . . . . . . . . . . Sneak Attacks 7 | . . . . . . . 3 . 3 . 1 Combat Hostiles . | . . . . . . . . . . . . Follow-up Attacks 1 | . . . . . . . . . . . 1 Damage Inflicted 15693 | 162 1298 282 4077 1968 2012 2205 1244 651 341 . 1453 Guns 8635 | 162 1242 276 2947 719 1386 1463 440 . . . . Cannons 156 | . . . . 156 . . . . . . . Explosions 4702 | . . . 1102 1088 626 669 442 273 . . 502 Melee 1986 | . . . . . . . 316 378 341 . 951 Ramming 214 | . 56 6 28 5 . 73 46 . . . . Kinetic 443 | 99 188 . . 156 . . . . . . . Thermal 5603 | 63 1054 276 1304 209 794 1463 440 . . . . Explosive 3139 | . . . 374 879 . 669 442 273 . . 502 Electromagnetic 4308 | . . . 2371 719 1218 . . . . . . Impact 1942 | . . . . . . . 316 378 341 . 907 Slashing 44 | . . . . . . . . . . . 44 Piercing . | . . . . . . . . . . . . Highest Corruption 15 | . . . 15 4 15 15 3 . . 10 11 Average Corruption 9 | . . . 7 4 11 15 2 . . 10 10 Corruption Purged 3 | . . . . . . . 3 . . . . Corruption Blocked . | . . . . . . . . . . . . Effects 212 | . . . 57 14 66 63 2 . . 1 9 Message Errors 50 | . . . 16 4 15 11 2 . . . 2 Matter Fused 36 | . . . 8 . 13 11 . . . 1 3 Heat Flow Errors 28 | . . . 8 4 7 8 . . . . 1 Energy Discharges 37 | . . . 8 5 14 9 . . . . 1 Parts Rejected 4 | . . . 3 . 1 . . . . . . Data Loss (minor) 23 | . . . 5 . 6 11 . . . . 1 Data Loss (major) 12 | . . . 4 . 2 5 . . . . 1 Misfires 8 | . . . 3 1 2 2 . . . . . Alerts 5 | . . . 1 . 3 1 . . . . . Weapon Failures 9 | . . . 1 . 3 5 . . . . . Overload Shots . | . . . . . . . . . . . . Overflow Damage 754 | . . . 21 35 25 8 159 107 195 . 204 Projectiles . | . . . . . . . . . . . . Explosions 185 | . . . 21 35 25 8 54 . . . 42 Melee 569 | . . . . . . . 105 107 195 . 162 Knockbacks 11 | . . 1 . 1 . 2 . 3 . . 4 Impact 10 | . . 1 . . . 2 . 3 . . 4 Kinetic 1 | . . . . 1 . . . . . . . Secondary . | . . . . . . . . . . . . Self-Inflicted Damage 561 | . . . 165 54 152 83 40 23 . . 44 Shots 20 | . . . 6 2 5 3 1 2 . . 1 Rammed 26 | . 10 2 3 3 . 4 4 . . . . Targets Rammed 30 | . 10 3 3 3 . 7 4 . . . . Kicked . | . . . . . . . . . . . . Crushed 4 | . . 1 . . . 3 . . . . . Highest Temperature 567 | 40 198 191 534 186 228 567 260 . . . 225 Average Temperature 104 | 18 68 94 100 68 75 157 95 . . . 113 Received Heat Transfer 3618 | . 417 90 885 450 675 596 73 96 36 . 300 Effects 27 | . . . 14 . . 13 . . . . . Shutdowns 6 | . . . 3 . . 3 . . . . . Energy Bleed 6 | . . . 4 . . 2 . . . . . Interference 2 | . . . 1 . . 1 . . . . . Matter Decay 2 | . . . . . . 2 . . . . . Short Circuit 6 | . . . 4 . . 2 . . . . . Damage (minor) 1 | . . . . . . 1 . . . . . Damage (major) 4 | . . . 2 . . 2 . . . . . Siege Activations . | . . . . . . . . . . . . Robots Corrupted 2 | . . . . . 2 . . . . . . Combat Hostiles 1 | . . . . . 1 . . . . . . Parts Fried 27 | . . . 10 4 1 . 5 2 4 . 1 Impact Corruptions 21 | . . . . . . . 5 5 6 . 5 Robots Melted 2 | . . . . . . 1 1 . . . . Combat Hostiles 1 | . . . . . . . 1 . . . . Parts Melted 24 | 1 5 2 3 . 1 8 4 . . . . Heat Transferred 12756 | 185 3182 777 3244 250 1004 3300 814 . . . . Parts Sabotaged . | . . . . . . . . . . . . Parts Stolen . | . . . . . . . . . . . . Parts Stripped . | . . . . . . . . . . . . Power Chain Reactions 26 | . . . 15 4 7 . . . . . . Missiles Intercepted . | . . . . . . . . . . . . Alert | -11 -10 -10 -9 -8 -8 -8 -7 -7 -7 -6 -6 ------- Run | Scr Mat Min Mat Mat Gar Sto Fac Gar Fac Fac Ext Peak Influence 1556 | 40 368 146 1038 773 1556 1157 718 758 423 223 200 Initial 758 | . 26 85 56 438 443 758 471 495 384 207 22 Average 583 | 19 202 111 509 625 1024 978 489 665 405 90 127 Maximum Alert Level 4 | . 1 . 3 3 4 4 3 3 2 1 1 Low Security (%) 19 | 100 52 100 8 . . . . . . 62 81 Level 1 13 | . 47 . 13 . . . 14 . 45 37 18 Level 2 32 | . . . 63 81 19 . 83 44 54 . . Level 3 24 | . . . 13 18 39 82 2 55 . . . Level 4 9 | . . . . . 41 17 . . . . . Level 5 . | . . . . . . . . . . . . High Security . | . . . . . . . . . . . . Max Security . | . . . . . . . . . . . . Sterilizations 1 | . . . 1 . . . . . . . . Squads Dispatched 47 | . 8 . 12 8 . 7 6 . 3 1 2 Investigation 26 | . 8 . 7 4 . 3 1 . 2 . 1 Extermination 2 | . . . . . . . 2 . . . . Reinforcement 12 | . . . 3 3 . . 3 . 1 1 1 Assault 5 | . . . 2 1 . 2 . . . . . Garrison 2 | . . . . . . 2 . . . . . Intercept . | . . . . . . . . . . . . Searches Triggered . | . . . . . . . . . . . . Construction Impeded 2 | . . . 1 1 . . . . . . . Haulers Reinforced 1 | . . . . . . . 1 . . . . Active Scanning Responses . | . . . . . . . . . . . . Cargo Convoy Interrupts . | . . . . . . . . . . . . Stealth | -11 -10 -10 -9 -8 -8 -8 -7 -7 -7 -6 -6 --------- Run | Scr Mat Min Mat Mat Gar Sto Fac Gar Fac Fac Ext Distress Signals 12 | . . . 6 . . 5 . . . . 1 Communications Jammed . | . . . . . . . . . . . . Distress Signals . | . . . . . . . . . . . . Times Spotted 230 | . 30 2 66 21 33 34 15 9 6 2 12 Peak Tracking Total 9 | . 6 2 6 8 8 9 5 3 3 1 5 Tactical Retreats 13 | . 1 . 2 . 3 1 2 1 . . 3 Traps | -11 -10 -10 -9 -8 -8 -8 -7 -7 -7 -6 -6 ------- Run | Scr Mat Min Mat Mat Gar Sto Fac Gar Fac Fac Ext Traps Triggered 21 | . 5 . 4 . 7 3 . 1 . . 1 Indirectly 1 | . . . 1 . . . . . . . . Trap Hack Attempts . | . . . . . . . . . . . . Triggered . | . . . . . . . . . . . . Disarmed . | . . . . . . . . . . . . Reprogrammed . | . . . . . . . . . . . . Reused . | . . . . . . . . . . . . Traps Extracted . | . . . . . . . . . . . . Installed . | . . . . . . . . . . . . Triggered 1 | . . . . . . . . . . . 1 Machines | -11 -10 -10 -9 -8 -8 -8 -7 -7 -7 -6 -6 ---------- Run | Scr Mat Min Mat Mat Gar Sto Fac Gar Fac Fac Ext Machines Disabled 21 | . . 1 4 3 2 4 2 3 . 1 1 Max in Single Turn 1 | . . 1 1 1 1 1 1 1 . 1 1 Garrison Relay 3 | . . . . . 2 . . 1 . . . Phase Generator 1 | . . . . . . . . 1 . . . Machines Sabotaged . | . . . . . . . . . . . . Overloaded Fab Kills . | . . . . . . . . . . . . Hacking | -11 -10 -10 -9 -8 -8 -8 -7 -7 -7 -6 -6 --------- Run | Scr Mat Min Mat Mat Gar Sto Fac Gar Fac Fac Ext Machines Accessed 44 | . 9 . 8 5 2 8 6 . 3 . 3 Terminals 30 | . 7 . 5 3 2 6 2 . 2 . 3 Fabricators 3 | . . . . . . . 2 . 1 . . Repair Stations 7 | . 1 . 2 1 . 2 1 . . . . Recycling Units 2 | . 1 . 1 . . . . . . . . Scanalyzers . | . . . . . . . . . . . . Garrison Access 2 | . . . . 1 . . 1 . . . . Total Hacks 140 | . 33 . 23 35 4 19 11 . 7 . 8 Successful 77 | . 18 . 13 29 1 4 7 . 2 . 3 Failed 62 | . 14 . 10 6 3 15 4 . 5 . 5 Catastrophic 9 | . 1 . 4 . . 3 . . 1 . . Database Lockouts 1 | . 1 . . . . . . . . . . Manual 63 | . 29 . 13 12 . 4 3 . 2 . . Terminals 88 | . 27 . 13 12 4 13 5 . 6 . 8 Fabricators 4 | . . . . . . . 3 . 1 . . Repair Stations 44 | . 5 . 9 22 . 6 2 . . . . Recycling Units 2 | . 1 . 1 . . . . . . . . Scanalyzers . | . . . . . . . . . . . . Garrison Access 2 | . . . . 1 . . 1 . . . . Terminal Hacks 24 | . 8 . 3 4 1 3 1 . 1 . 3 Part Schematic 2 | . 1 . . 1 . . . . . . . Robot Schematic 1 | . 1 . . . . . . . . . . Robot Analysis 4 | . 4 . . . . . . . . . . Open Door 4 | . . . . . . 1 . . . . 3 Level Access Points 1 | . . . . . . 1 . . . . . Branch Access Points 2 | . 1 . . 1 . . . . . . . Alert Level 1 | . . . . 1 . . . . . . . Unreport Threat 2 | . . . 1 . . 1 . . . . . Hauler Manifests 3 | . 1 . 1 1 . . . . . . . Zone Layout 3 | . . . 1 . . . 1 . 1 . . Garrison Registry 1 | . . . . . 1 . . . . . . Fabricator Hacks 2 | . . . . . . . 1 . 1 . . Network Status 2 | . . . . . . . 1 . 1 . . Repair Station Hacks 37 | . 4 . 8 22 . 1 2 . . . . Scan Component 19 | . 2 . 4 11 . 1 1 . . . . Repair 18 | . 2 . 4 11 . . 1 . . . . Recycling Unit Hacks . | . . . . . . . . . . . . Scanalyzer . | . . . . . . . . . . . . Garrison Access Hacks 2 | . . . . 1 . . 1 . . . . Unlock Access 2 | . . . . 1 . . 1 . . . . Unauthorized Hacks 12 | . 6 . 2 2 . . 2 . . . . Terminals 9 | . 5 . 1 2 . . 1 . . . . Assimilate 1 | . . . . . . . 1 . . . . Operators 1 | . 1 . . . . . . . . . . Search 7 | . 4 . 1 2 . . . . . . . Fabricators 1 | . . . . . . . 1 . . . . Liberate 1 | . . . . . . . 1 . . . . Repair Stations . | . . . . . . . . . . . . Recycling Units 2 | . 1 . 1 . . . . . . . . Tunnel 2 | . 1 . 1 . . . . . . . . Scanalyzers . | . . . . . . . . . . . . Garrison Access . | . . . . . . . . . . . . Data Cores Recovered 1 | . . . . . . 1 . . . . . Used . | . . . . . . . . . . . . Hacking Detections 40 | . 8 . 7 5 2 7 6 . 3 . 2 Full Trace Events 21 | . 4 . 6 2 1 4 1 . 2 . 1 Feedback Events 4 | . . . 4 . . . . . . . . Corruption 4 | . . . 4 . . . . . . . . Feedback Blocked . | . . . . . . . . . . . . Robot Schematics Acquired 1 | . 1 . . . . . . . . . . Robots Built . | . . . . . . . . . . . . Authchips . | . . . . . . . . . . . . Time . | . . . . . . . . . . . . Total Robot Build Rating . | . . . . . . . . . . . . Part Schematics Acquired 2 | . 1 . . 1 . . . . . . . Parts Built . | . . . . . . . . . . . . Authchips . | . . . . . . . . . . . . Time . | . . . . . . . . . . . . Total Part Build Rating . | . . . . . . . . . . . . Parts Repaired 18 | . 2 . 4 11 . . 1 . . . . Time 639 | . 58 . 189 342 . . 50 . . . . Parts Recycled . | . . . . . . . . . . . . Recycled Matter . | . . . . . . . . . . . . Retrieved Matter . | . . . . . . . . . . . . Retrieved Components . | . . . . . . . . . . . . Parts Scanalyzed . | . . . . . . . . . . . . Part Schematics Acquired . | . . . . . . . . . . . . Parts Damaged . | . . . . . . . . . . . . Bothacking | -11 -10 -10 -9 -8 -8 -8 -7 -7 -7 -6 -6 ------------ Run | Scr Mat Min Mat Mat Gar Sto Fac Gar Fac Fac Ext Used RIF Installer 3 | . . . . . 1 . . 2 . . . Signal Jammer 1 | . . . . . . . . 1 . . . Zone Cloak 1 | . . . . . . . . 1 . . . Robots Hacked 1 | . . . . . . . . . . 1 . Non-combat 1 | . . . . . . . . . . 1 . Combat . | . . . . . . . . . . . . Robot Hacks Applied 3 | . . . . . . . . . . 3 . purge_threat 2 | . . . . . . . . . . 2 . summon_haulers 1 | . . . . . . . . . . 1 . Relay Couplers Released 11 | . . . . . 8 . . 3 . . . Machine Destruction 11 | . . . . . 8 . . 3 . . . Attached 1 | . . . . . . . . . . 1 . Fabnet Peak Effective % . | . . . . . . . . . . . . Robots Rewired 12 | . . . . . 9 . . . . . 3 Allies Hacked . | . . . . . . . . . . . . Hacks Repelled . | . . . . . . . . . . . . Allies | -11 -10 -10 -9 -8 -8 -8 -7 -7 -7 -6 -6 -------- Run | Scr Mat Min Mat Mat Gar Sto Fac Gar Fac Fac Ext Total Allies 17 | . . . . . 9 2 1 . . . 5 Largest Group 9 | . . . . . 9 6 1 1 . . 3 Highest-Rated Group 185 | . . . . . 185 130 26 26 . . 76 Highest-Rated Ally 39 | . . . . . 39 39 26 26 . . 31 Total Orders . | . . . . . . . . . . . . Ally Attacks 80 | . . . . . 20 56 . . . . 4 Total Damage 1492 | . . . . . 334 1008 . . . . 150 Kills 20 | . . . . . 6 14 . . . . . Allies Corrupted . | . . . . . . . . . . . . Allies Melted 1 | . . . . . . . . . . . 1 Intel | -11 -10 -10 -9 -8 -8 -8 -7 -7 -7 -6 -6 ------- Run | Scr Mat Min Mat Mat Gar Sto Fac Gar Fac Fac Ext Robot Analysis Total 4 | . 4 . . . . . . . . . . Derelict Logs Recovered 1 | . . 1 . . . . . . . . . Drone Launches . | . . . . . . . . . . . . Drone Recoveries . | . . . . . . . . . . . . Exploration | -11 -10 -10 -9 -8 -8 -8 -7 -7 -7 -6 -6 ------------- Run | Scr Mat Min Mat Mat Gar Sto Fac Gar Fac Fac Ext Turns Passed 10867 | 280 1763 303 2174 1153 1897 1508 787 246 222 194 340 Spaces Moved 4435 | 144 687 102 671 253 662 490 503 204 264 246 209 Core 13 | 6 . . . . . . . 5 . . 2 Treads 3175 | 138 687 102 671 253 662 490 144 . . . 28 Legs 33 | . . . . . . . . . . . 33 Wheels . | . . . . . . . . . . . . Hover 1164 | . . . . . . . 359 174 239 246 146 Flight 50 | . . . . . . . . 25 25 . . Fastest Speed 35 | 50 160 240 160 240 240 236 38 35 35 48 50 Average Speed 176 | 155 207 240 220 240 240 239 96 74 59 50 85 Slowest Speed 480 | 160 320 240 480 240 240 240 282 110 116 116 240 Overloaded Moves . | . . . . . . . . . . . . Propulsion Burnouts . | . . . . . . . . . . . . Robots Hopped . | . . . . . . . . . . . . Cave-ins Triggered 1 | . . . . . . . . . . 1 . Exploration Rate (%) 39 | 7 98 24 69 34 68 67 20 47 8 9 23 Regions Visited 11 Branch Regions 3 Pre-discovered Areas 3 | . 1 1 1 . . . . . . . . Known Exits Taken 4 | . 1 . . 1 . 1 1 . . . . Unknown Exits Taken 5 | 1 . 1 1 . . . . . 1 1 . Scrap Searched . | . . . . . . . . . . . . Spaces Dug 42 | . . . . . . . 5 8 2 14 13 Terrain Destroyed 410 | . . . 69 87 11 23 32 114 2 14 58 Melee 18 | . . . . . . . . 2 2 14 . Projectile . | . . . . . . . . . . . . AOE 392 | . . . 69 87 11 23 32 112 . . 58 Terrain Rammed . | . . . . . . . . . . . . Walls Destroyed . | . . . . . . . . . . . . Machines Disabled . | . . . . . . . . . . . . Actions | -11 -10 -10 -9 -8 -8 -8 -7 -7 -7 -6 -6 --------- Run | Scr Mat Min Mat Mat Gar Sto Fac Gar Fac Fac Ext Total 6542 | 176 900 130 1125 723 866 703 760 241 313 289 316 Wait 1045 | . 85 1 251 380 32 65 172 . 31 17 11 Move 4426 | 143 686 101 670 253 661 489 503 203 263 245 209 Hop . | . . . . . . . . . . . . Pick Up 99 | 6 19 2 18 12 18 16 4 . 1 2 1 Fast Attach 85 | 8 9 3 16 9 2 7 8 3 8 . 12 Attach 47 | . 2 . 8 4 14 6 9 1 1 1 1 Detach 17 | 1 1 2 3 2 2 2 3 . 1 . . Swap 79 | 2 7 3 19 15 3 17 6 1 . 4 2 Drop 105 | 1 17 2 15 7 10 23 25 1 2 2 . Fire 407 | 15 64 13 122 38 55 67 18 10 . . 5 Melee 78 | . . . . . . . 8 22 6 18 24 Ram 1 | . . . . . . . 1 . . . . Kick . | . . . . . . . . . . . . Crush 29 | . 10 3 3 3 . 7 3 . . . . Escape Stasis 16 | . . . . . 6 2 . . . . 8 Rewire 108 | . . . . . 63 2 . . . . 43 Trap . | . . . . . . . . . . . . Miscellaneous . | . . . . . . . . . . . . Route ------- -11/Scrapyard -10/Materials (discovered 4 exits: *Mat x3 / *Min) -10/Mines -9/Materials (discovered 3 exits: *Mat x3) -8/Materials (discovered 4 exits: *Fac / Sto x2 / Gar) -8/Garrison (discovered 3 exits: *Sto x3) -8/Storage -7/Factory (discovered 2 exits: [*Low] / Gar) -7/Garrison -7/Factory -6/Factory -6/Extension History --------- Turn | Location | Event 9 | -11/Scrapyard | Discovered new exit (range 13) 281 | -11/Scrapyard | Entered Materials 301 | -10/Materials | Build established: Mutant 491 | -10/Materials | Destroyed 8 combat bots 663 | -10/Materials | Discovered new exit (range 12) 1244 | -10/Materials | Discovered new exit (range 9) 1657 | -10/Materials | Repaired Beam Rifle 1684 | -10/Materials | Repaired Lgt. Treads 1690 | -10/Materials | Core integrity fell below 50% 1734 | -10/Materials | Discovered new exit (range 15) 1743 | -10/Materials | Identified exit to Mines 1743 | -10/Materials | Central database locked down 2044 | -10/Materials | Entered Mines 2059 | -10/Mines | Learned Materials stockpile data 2073 | -10/Mines | Discovered new exit (range 6) 2117 | -10/Mines | Learned location of Storage (-8) 2347 | -10/Mines | Entered Materials 2347 | -9/Materials | Evolved 2 slots: Propulsion x1, Utility x1 3171 | -9/Materials | Build established: Scavenger-Mutant 3435 | -9/Materials | Discovered new exit (range 15) 3689 | -9/Materials | Repaired Imp. EM Shotgun 3727 | -9/Materials | Repaired Corrupted Lgt. Treads 3780 | -9/Materials | Discovered new exit (range 12) 3872 | -9/Materials | Build established: Mutant 3947 | -9/Materials | First assault squad dispatched 4080 | -9/Materials | Repaired Imp. EM Shotgun 4132 | -9/Materials | Repaired Imp. EM Shotgun 4172 | -9/Materials | Build established: Scavenger-Mutant 4329 | -9/Materials | System corruption reached 10% 4410 | -9/Materials | Sterilization system engaged 4410 | -9/Materials | Non-combat units ordered to evacuate 4447 | -9/Materials | Discovered new exit (range 7) 4510 | -9/Materials | Combat units ordered to evacuate 4521 | -9/Materials | Entered another Materials area 4521 | -8/Materials | Evolved 2 slots: Propulsion x1, Utility x1 4921 | -8/Materials | First assault squad dispatched 4983 | -8/Materials | Destroyed 8 combat bots 5097 | -8/Materials | Discovered new exit (range 10) 5111 | -8/Materials | Identified exit to Storage 5150 | -8/Materials | Identified exit to Factory 5204 | -8/Materials | Repaired Med. Armor Plating 5230 | -8/Materials | Repaired Lgt. Treads 5283 | -8/Materials | Repaired Imp. EM Shotgun 5310 | -8/Materials | Repaired Lgt. Treads 5338 | -8/Materials | Repaired Lgt. Treads 5365 | -8/Materials | Repaired Lgt. Treads 5392 | -8/Materials | Repaired Lgt. Treads 5420 | -8/Materials | Repaired Lgt. Treads 5447 | -8/Materials | Repaired Lgt. Treads 5451 | -8/Materials | Build established: Hacker-Mutant 5473 | -8/Materials | Repaired Lgt. Armor Plating 5525 | -8/Materials | Repaired Hvy. Ion Engine 5674 | -8/Materials | Identified exit to Garrison 5674 | -8/Materials | Entered Garrison 5788 | -8/Garrison | Triggered checkpoint 5809 | -8/Garrison | Build established: Scavenger-Mutant 6027 | -8/Garrison | Triggered checkpoint 6067 | -8/Garrison | Destroyed 7 combat bots 6080 | -8/Garrison | Triggered checkpoint 6270 | -8/Garrison | System corruption reached 10% 6347 | -8/Garrison | Discovered exit to Storage (range 14) 6359 | -8/Garrison | Core integrity fell below 50% 6413 | -8/Garrison | Lost 5 parts (2n1u2w) 6661 | -8/Garrison | Build established: Mutant 6693 | -8/Garrison | Installed Relay Interface Framework 6792 | -8/Garrison | Garrison Relay disabled 6999 | -8/Garrison | Lost 4 parts (2n2w) 7112 | -8/Garrison | Discovered exit to Storage (range 26) 7112 | -8/Garrison | Discovered exit to Storage (range 60) 7112 | -8/Garrison | Discovered exit to Storage (range 93) 7134 | -8/Garrison | Build established: Commander-Mutant 7264 | -8/Garrison | Triggered checkpoint 7356 | -8/Garrison | Triggered checkpoint 7571 | -8/Garrison | Entered Storage 7571 | -8/Storage | Accompanied by 6 allies 8193 | -8/Storage | Build established: Scavenger-Mutant 8817 | -8/Storage | Met a pair of Derelict thieves 8869 | -8/Storage | Core integrity fell below 20% 8889 | -8/Storage | Garrison activated, responded to threat 8929 | -8/Storage | Destroyed 7 combat bots 9079 | -8/Storage | Entered Factory 9079 | -7/Factory | Evolved 2 slots: Utility x2 9209 | -7/Factory | Build established: Mutant 9410 | -7/Factory | Repaired Force Field 9683 | -7/Factory | Discovered new exit (range 15) 9866 | -7/Factory | Identified exit to Garrison 9866 | -7/Factory | Entered Garrison 9866 | -7/Garrison | Accompanied by 1 ally 9882 | -7/Garrison | Triggered checkpoint 9909 | -7/Garrison | Garrison Relay disabled 9934 | -7/Garrison | Expanded RIF knowledge: Signal Jamming 9958 | -7/Garrison | Phase Generator disabled 10019 | -7/Garrison | Triggered checkpoint 10088 | -7/Garrison | Lost 3 parts (1n1u1w) 10092 | -7/Garrison | Expanded RIF knowledge: Zone Cloak 10108 | -7/Garrison | Discovered new exit (range 10) 10112 | -7/Garrison | Entered Factory 10132 | -7/Factory | Lost 4 parts (1p3n) 10325 | -7/Factory | Discovered new exit (range 13) 10334 | -7/Factory | Entered another Factory area 10334 | -6/Factory | Evolved 2 slots: Power x1, Propulsion x1 10483 | -6/Factory | Build established: Hacker-Mutant 10494 | -6/Factory | Discovered new exit (range 9) 10496 | -6/Factory | Crushed by falling debris 10496 | -6/Factory | System corruption reached 10% 10527 | -6/Factory | Lost 3 parts (2n1u) 10528 | -6/Factory | Entered Extension 10572 | -6/Extension | Rescued a captive Derelict 10611 | -6/Extension | Rescued a captive Derelict 10698 | -6/Extension | Lost 7 parts (2p3n1u1w) 10868 | -6/Extension | Rescued A7 10868 | -6/Extension | Self-destructed Last Messages --------------- 10803_ Adv. Heat Sink fried. 10805_ Acquired 53 matter. 10807_ Acquired Corrupted Carbon-fiber Leg. 10814_ Attempting to rewire NS-ELD(b). 10824_ System corrupted: Matter fused (-6). 10824_ Attempting to rewire NS-ELD(b). 10828_ NS-ELD(b) rewired. 10829_ Attempting to rewire X4-HR9(l). 10833_ X4-HR9(l) rewired. 10834_ Attempting to rewire JY-RJ6(g). 10846_ System corrupted: Component data lost. 10846_ Attempting to rewire JY-RJ6(g). 10854_ JY-RJ6(g) rewired. 10863_ Acquired 58 matter. 10867_ Connecting with Door Terminal... >>Open(Door) Sealed Heavy Doors opened. 10868_ A7: "I've been trapped here for some time now, I should probabl##AID::LRC-V3##I suddenly feel like you could use my help. Lead on." Map ----- +----------------------------------------------------+ | | | | | | | | | | | | | | | | | | | | | | | | | ?????????????????????????????????????????????????? | | ?????????????????????????????????????????????????? | | ?????????????????????????????????????????????????? | | ???????????????????????########??????????????????? | | #####????#####?????????# ] #??????????????????? | | # ###### ########### #??????????????????? | | + #??????????????????? | | # ###### ########### #??????????????????? | | #####????#####?????????# #??????????????????? | | ???????????????????????# = #??????????????????? | | ?????????????????#########+##########????????????? | | ???????????# #?????? | | ?????????? ##/########## #???????????? | | ???????????# ????#T@ #?????????????????????? | | ???????????# ????????## ##?????????????????????? | | ????????????????????????#p ??????????????????????? | | ????????????????????????###??????????????????????? | | ?????????????????????????????????????????????????? | | ?????????????????????????????????????????????????? | | ?????????????????????????????????????????????????? | | ?????????????????????????????????????????????????? | | ?????????????????????????????????????????????????? | | ?????????????????????????????????????????????????? | | ?????????????????????????????????????????????????? | | ?????????????????????????????????????????????????? | | ?????????????????????????????????????????????????? | | ?????????????????????????????????????????????????? | | ?????????????????????????????????????????????????? | | ?????????????????????????????????????????????????? | | ?????????????????????????????????????????????????? | | ?????????????????????????????????????????????????? | | ?????????????????????????????????????????????????? | | ?????????????????????????????????????????????????? | | ?????????????????????????????????????????????????? | | ?????????????????????????????????????????????????? | | ?????????????????????????????????????????????????? | | ?????????????????????????????????????????????????? | | ?????????????????????????????????????????????????? | +----------------------------------------------------+ Best States ------------- Heat Dissipation 45 Coolant Potential 50 Energy Generation 18 Energy Capacity 310 Matter Stores 300 Matter Capacity 300 Sight Range 20 Robot Scan Range 15 Terrain Scan Range 16 Terrain Scan Density 10 Additional Mass Support 12 Armor Coverage 450 Core Shielding 20 Utility Shielding 66 Evasion (%) 63 Targeting Accuracy 5 Recoil Reduction 4 Offensive Hacking 20 Defensive Hacking 10 Item Schematics ----------------- Targeting Computer | -10/Materials | Hacked Med. Armor Plating | -8/Materials | Hacked Robot Schematics ------------------ O-16 Technician | -10/Materials | Hacked Fabricated ------------ Nothing Alien Tech Used ----------------- None Achievements -------------- None Challenges ------------ None Game ------ Seed TiamatCatalystDesublimator Manual? 0 Play Time 01:19:36 Cumulative 551.7 hours Start 2022.10.09 @ 16:00:30 End 2022.11.26 @ 06:36:39 Sessions 17 Manual Loads 0 Difficulty Rogue Special Mode None Game No. 532 Rogue 317 Adventurer 112 Explorer 103 Win Type - Total 37 Types 25/0/8/2/0/0/1/1/0 Lore% 88 Gallery% 92 Achievement% 80 Wizard Run 0 Options --------- ASCII 0 Keyboard 0 Movement Vi Keybinds 1 Fullscreen 2 Font 18/SmallcapsGlow Map View 66x52 Tactical HUD 1 Map Filters NONE Filters NONE Steam 1 RUN: f9439b97-8ecd-4f99-aa4d-f57950c4ae38